[Event "125-Jahre Werder Bremen 2024"]
[Site "Bremen"]
[Date "2024.03.05"]
[Round "4.1"]
[White "Cheng, Bobby"]
[Black "Aditya Mittal"]
[Result "0-1"]
[ECO "D14"]
[WhiteElo "2584"]
[BlackElo "2594"]
[Annotator "TA"]
[PlyCount "72"]
[EventDate "2024.02.26"]
[EventType "swiss"]
[EventCountry "GER"]
[SourceTitle "playchess.com"]
[Source "ChessBase"]
[SourceQuality "1"]
[TimeControl "40/6000+30:1800+30"]

{[%evp 14,72,16,7,14,14,34,38,35,12,4,17,15,15,32,9,39,51,63,39,37,7,14,-6,-11,-37,-35,-49,-54,-56,-56,-56,-49,-58,-56,-58,-58,-273,-283,-239,-75,-92,-75,-92,-92,-78,-78,-78,-76,-90,-76,-76,-76,-1664,-1312,-1711,-1582,-1431,-1328,-29990,-29991]} 1. d4 {[%emt 0:00:03]} d5 {[%emt 0:00:01]} 2. c4 {[%emt 0:00:07]} c6 {[%emt 0:00:02]} 3. cxd5 {[%emt 0:02:27]} cxd5 {[%emt 0:00:01]} 4. Nc3 {[%emt 0:00:08]} Nf6 {[%emt 0:00:01]} 5. Nf3 {[%emt 0:00:36]} Nc6 {[%emt 0:00:02]} 6. Bf4 {[%emt 0:00:10]} Bf5 {[%emt 0:00:01]} 7. e3 {[%emt 0:01:59]} e6 {[%emt 0:00:01]} 8. Ne5 {[%emt 0:00:53]} Bb4 {[%emt 0:01:20]} (8... Nxe5 {simplifies} 9. Bxe5 Nd7 10. Bg3 a6) 9. Qb3 {[%emt 0:48:52]} a5 {[%emt 0:00:02]} 10. Bb5 {[%emt 0:07:42]} O-O {[%emt 0:00:02][%cal Oa5a4] White is slightly better.} 11. O-O {[%emt 0:00:48]} Nxe5 {[%emt 0:00:50]} 12. Bxe5 {[%emt 0:00:46]} h5 {[%emt 0:00:38]} 13. f3 {[%emt 0:07:17] Repels Ng4} h4 {[%emt 0:06:29]} 14. Rac1 {[%emt 0:09:18]} Rc8 {[%emt 0:15:20]} 15. a3 {[%emt 0:01:14]} Bd6 {[%emt 0:12:00]} 16. Bxd6 {[%emt 0:00:35]} Qxd6 {[%emt 0:01:37]} 17. Be2 {[%emt 0:00:24]} e5 {[%emt 0:04:46]} 18. Nb5 {[%emt 0:04:14]} (18. Qxb7 $2 exd4 19. exd4 Qf4 $19) 18... Qb6 {[%emt 0:03:03]} 19. a4 {[%emt 0:04:14]} (19. dxe5 $2 a4 20. Rxc8 axb3 $19) 19... e4 {[%emt 0:04:38]} 20. f4 {[%emt 0:01:04]} h3 {[%emt 0:01:45]} 21. g3 {[%emt 0:01:18]} Bg4 {[%emt 0:08:52]} 22. Bxg4 {[%emt 0:06:37]} Nxg4 {[%emt 0:00:07]} 23. Rfe1 {[%emt 0:00:04]} Rfd8 {[%emt 0:05:22]} 24. Qa3 {[%emt 0:00:23]} Qe6 {[%emt 0:03:15][%cal Og4f2]} 25. Nc7 $2 {[%emt 0:02:10] [#]} ({White should try} 25. Rc3 $15) 25... Qd7 $1 $19 {[%emt 0:04:38]} 26. Nb5 {[%emt 0:00:01]} Nh6 $2 {[%emt 0:06:12]} (26... Nf2 $19 {[%cal Od7g4] has better winning chances. ( -> ...Qg4!)} 27. Rxc8 (27. Kxf2 {gets mated.} Qg4 28. Red1 Qf3+ 29. Ke1 Qh1+ 30. Kf2 Qxh2+ 31. Ke1 Qxg3+ 32. Ke2 Qg2+ 33. Ke1 h2) 27... Rxc8) 27. Qb3 {[%emt 0:00:46]} Qg4 {[%emt 0:06:41][%cal Og4e2]} 28. Rc3 {[%emt 0:01:25]} Nf5 {[%emt 0:02:21][%cal Of5g3,Bh6f5,Bf5h4,Bh4f3][%mdl 32]} 29. Qc2 {[%emt 0:00:21]} Rxc3 $40 {[%emt 0:07:57][%mdl 128] Black wants a kill.} ({But not} 29... Nxg3 30. hxg3 Qxg3+ 31. Kf1 $11) 30. Nxc3 {[%emt 0:00:32]} Nh4 {[%emt 0:03:41] [#] White must now prevent ...Nf3+.} 31. Qe2 {[%emt 0:00:32]} Nf3+ {[%emt 0:01:26]} (31... Qxe2 {simplifies} 32. Rxe2 Nf3+ 33. Kf1 Kf8) 32. Kh1 {[%emt 0:00:01]} Rc8 {[%emt 0:00:38] Black has more active pieces.} 33. Nxd5 $2 {[%emt 0:07:35][%mdl 8192]} (33. Rf1 $17) 33... Qe6 {[%emt 0:01:07]} 34. Nc3 {[%emt 0:01:24]} Nxe1 {[%emt 0:00:14]} 35. Qxe1 {[%emt 0:00:08]} Qb3 {[%emt 0:01:05]} 36. Qa1 {[%emt 0:01:50]} Qc2 {[%emt 0:00:16] Weighted Error Value: White=0.58/Black=0.12 (very precise) .  Loses game:     	White=2     	---        Missed win:     	---       	Black=1      Inaccurate:     	White=2     	Black=1      OK:         	White=8     	Black=10     Best:        	White=2     	Black=3      Strong:       	---       	Black=1} 0-1

[Event "125-Jahre Werder Bremen 2024"]
[Site "Bremen"]
[Date "2024.03.05"]
[Round "4.2"]
[White "Gumularz, Szymon"]
[Black "Gloeckler, Christian"]
[Result "1/2-1/2"]
[ECO "E48"]
[WhiteElo "2590"]
[BlackElo "2356"]
[Annotator "TA"]
[PlyCount "42"]
[EventDate "2024.02.26"]
[EventType "swiss"]
[EventCountry "GER"]
[SourceTitle "playchess.com"]
[Source "ChessBase"]
[SourceQuality "1"]
[TimeControl "40/6000+30:1800+30"]

{[%evp 11,42,8,12,-6,-8,-19,0,-10,-18,-24,-15,-15,0,-12,-21,-15,-22,-4,-27,-25,12,0,-15,-30,-6,0,-16,-116,0,-51,-25,-44,-88]} 1. d4 {[%emt 0:00:04]} Nf6 {[%emt 0:00:09]} 2. c4 {[%emt 0:00:07]} e6 {[%emt 0:00:05]} 3. Nc3 {[%emt 0:00:07]} Bb4 {[%emt 0:00:08]} 4. e3 {[%emt 0:00:07]} O-O {[%emt 0:00:07]} 5. Bd3 {[%emt 0:00:06]} d5 {[%emt 0:00:17]} 6. cxd5 {[%emt 0:00:30]} exd5 {[%emt 0:00:28]} 7. a3 {[%emt 0:00:06]} Bd6 {[%emt 0:07:44]} 8. Qc2 {[%emt 0:00:18]} c6 {[%emt 0:03:00]} 9. Nge2 {[%emt 0:00:33] The position is equal.} Re8 {[%emt 0:06:38]} 10. Bd2 {[%emt 0:00:16]} Nbd7 {[%emt 0:08:08]} 11. f3 {[%emt 0:00:20]} a6 {[%emt 0:25:21]} 12. g4 {[%emt 0:03:30]} Nf8 $1 {[%emt 0:04:53]} 13. O-O-O {[%emt 0:00:32]} b5 {[%emt 0:05:02]} 14. g5 {[%emt 0:11:37]} N6d7 {[%emt 0:03:48][%cal Oa6a5]} 15. e4 {[%emt 0:03:08]} Bb7 {[%emt 0:08:04]} (15... Nb6 $5) 16. e5 {[%emt 0:03:53]} Be7 {[%emt 0:00:47][%cal Oc6c5]} 17. Rhg1 {[%emt 0:34:51][%cal Od3h7]} g6 {[%emt 0:03:09] Black wants to play ...c5.} 18. f4 {[%emt 0:13:04] Hoping for f5.} c5 {[%emt 0:02:08]} 19. f5 {[%emt 0:00:08]} (19. h4 $11 {keeps the balance.}) 19... b4 {[%emt 0:07:42]} (19... cxd4 $17 20. e6 fxe6 (20... dxc3 $2 21. Bxc3 Bxg5+ 22. Kb1 $19) 21. Nxd4 Bc5 (21... gxf5 $2 {perishes.} 22. g6 $16) (21... exf5 22. Nxf5 b4 23. Nxe7+ Qxe7 24. axb4 $11) 22. Nxe6 Nxe6 23. fxe6 Rxe6) 20. e6 {[%emt 0:05:13]} bxc3 $15 {[%emt 0:02:23]} 21. exf7+ {[%emt 0:03:51]} Kxf7 {[%emt 0:01:23] Weighted Error Value: White=0.18 (very precise) /Black=0.16 (very precise) .  Mistake:       	White=2     	Black=1      Inaccurate:     	White=1     	Black=1      OK:         	White=4     	Black=5      Best:        	White=1     	Black=1      Strong:       	---       	Black=1} 1/2-1/2

[Event "125-Jahre Werder Bremen 2024"]
[Site "Bremen"]
[Date "2024.03.05"]
[Round "4.3"]
[White "Efimenko, Zahar"]
[Black "Schneider, Jana"]
[Result "1-0"]
[ECO "E14"]
[WhiteElo "2568"]
[BlackElo "2303"]
[Annotator "TA"]
[PlyCount "125"]
[EventDate "2024.02.26"]
[EventType "swiss"]
[EventCountry "GER"]
[SourceTitle "playchess.com"]
[Source "ChessBase"]
[SourceQuality "1"]
[TimeControl "40/6000+30:1800+30"]

{[%evp 25,125,-5,-13,-16,0,0,0,0,106,71,72,50,58,54,103,67,78,70,79,64,316,366,362,65,362,350,344,328,321,83,85,75,96,87,96,97,95,66,91,43,45,49,55,63,120,121,123,106,126,83,83,83,160,59,34,41,34,31,56,45,56,60,110,118,150,15,37,0,177,15,16,20,737,627,29969,29970,29976,29977,29977,29978,29978,29979,29979,29980,29980,29981,29981,29982,29982,29983,29983,29984,29984,29985,29985,29986,29986,29987,29987,29987,29990,29991]} 1. Nf3 {[%emt 0:08:06]} d5 {[%emt 0:00:15]} 2. e3 {[%emt 0:00:14]} Nf6 {[%emt 0:00:34]} 3. c4 {[%emt 0:00:11]} e6 {[%emt 0:00:36]} 4. b3 {[%emt 0:00:25]} Nbd7 {[%emt 0:06:48]} 5. Bb2 {[%emt 0:00:57]} b6 {[%emt 0:00:36]} 6. Nc3 {[%emt 0:02:30]} Bb7 {[%emt 0:00:46]} 7. d4 {[%emt 0:02:03]} Bd6 {[%emt 0:01:59]} 8. Bd3 {[%emt 0:00:54]} a6 {[%emt 0:01:12]} 9. O-O {[%emt 0:00:21]} O-O {[%emt 0:00:30]} 10. Rc1 {[%emt 0:00:59]} Re8 {[%emt 0:03:07]} 11. cxd5 {[%emt 0:04:57]} exd5 {[%emt 0:00:51]} 12. Ne2 {[%emt 0:00:17]} Ne4 {[%emt 0:08:38]} 13. Ng3 {[%emt 0:00:41]} Nxg3 {[%emt 0:08:03]} 14. hxg3 {[%emt 0:00:34]} Nf6 {[%emt 0:00:38]} 15. Ne5 {[%emt 0:06:49]} c5 {[%emt 0:03:35]} 16. f4 {[%emt 0:14:46]} Ne4 {[%emt 0:04:29]} (16... Bc8 $11 {remains equal.}) 17. Bxe4 {[%emt 0:00:26]} (17. Qh5 {feels hotter.} Qe7 18. Bxe4 dxe4 19. Nc4) 17... dxe4 {[%emt 0:00:13]} 18. Qe2 {[%emt 0:01:14]} Rc8 {[%emt 0:13:06]} 19. dxc5 {[%emt 0:08:53]} Rxc5 {[%emt 0:02:18]} (19... Bxe5 $1 $14 20. Bxe5 Rxc5) 20. Rxc5 {[%emt 0:07:30]} Bxc5 {[%emt 0:01:05]} 21. Rd1 {[%emt 0:00:26]} Qc8 $1 {[%emt 0:02:40]} (21... Bxe3+ $2 22. Kh2 Qe7 23. Rd7 $18 (23. Qxe3 Qc5 $18)) 22. Nd7 {[%emt 0:05:54]} Rd8 $2 {[%emt 0:08:19][%mdl 8192]} (22... Qc6 $1 $14) 23. Qg4 $1 $18 {[%emt 0:03:50]} (23. Nxc5 Rxd1+ 24. Qxd1 bxc5 $16) 23... Bf8 {[%emt 0:00:41]} 24. Nf6+ {[%emt 0:08:05]} Kh8 {[%emt 0:00:10]} 25. Rxd8 $1 {[%emt 0:01:07]} Qxd8 {[%emt 0:00:12]} 26. Qf5 $1 {[%emt 0:01:45]} g6 {[%emt 0:05:35]} (26... gxf6 $2 {is the wrong capture.} 27. Bxf6+ $18) ({Inferior is} 26... Qd1+ 27. Kh2 g6 28. Ng4+ (28. Nxe4+ Bg7 $18) 28... Kg8 29. Qf6) 27. Nxe4+ $2 {[%emt 0:15:00]} (27. Qh3 $18 {[%csl Gf6][%cal Rh3h7] and White stays clearly on top.} h6 28. Nxe4+ Kh7 29. Nf6+ Kg7 30. Bd4) 27... Bg7 $16 {[%emt 0:01:09]} 28. Bxg7+ $1 {[%emt 0:00:07]} ({Much weaker is} 28. Qxf7 $6 Qd1+ 29. Kf2 Qc2+ 30. Kg1 Qd1+ 31. Kh2 Qh5+ 32. Kg1 Qd1+ $11) 28... Kxg7 {[%emt 0:01:34]} 29. Qe5+ {[%emt 0:00:16]} f6 {[%emt 0:01:01]} 30. Qd6 {[%emt 0:00:46]} Qxd6 {[%emt 0:01:05]} 31. Nxd6 {[%emt 0:00:05]} Bc6 {[%emt 0:02:14]} 32. e4 {[%emt 0:00:47]} ({White should try} 32. Nc4 $16) 32... Kf8 {[%emt 0:01:18]} 33. Kf2 {[%emt 0:00:27]} Ke7 {[%emt 0:03:12]} 34. Nc8+ {[%emt 0:01:12]} Kd8 {[%emt 0:00:58]} (34... Ke6 $1 $14) 35. Nxb6 $16 {[%emt 0:00:12]} Bxe4 {[%emt 0:00:10]} 36. Na4 {[%emt 0:03:50]} Bc6 {[%emt 0:08:29]} 37. Nc5 {[%emt 0:00:09]} a5 {[%emt 0:00:17]} 38. g4 {[%emt 0:00:05]} Ke7 {[%emt 0:01:59]} (38... Kc7 $142) 39. g3 {[%emt 0:00:55]} (39. a3 $1 $16) 39... Kd6 $14 {[%emt 0:00:14]} 40. Nd3 {[%emt 0:00:04]} Bd7 {[%emt 0:17:47]} 41. g5 {[%emt 0:30:35]} fxg5 {[%emt 0:30:43]} 42. fxg5 {[%emt 0:00:04]} Kd5 {[%emt 0:00:00]} 43. Ke3 {[%emt 0:00:00]} Bf5 {[%emt 0:00:00]} ({Better is} 43... Bc8 $1 $14) 44. a3 $1 $16 {[%emt 0:00:00]} Bc8 {[%emt 0:00:00] [#]} 45. Nf2 {[%emt 0:00:00]} ({White has to play} 45. Nb2 $1 $16 {[%cal Rb2c4] Black must now prevent Nc4.} Ba6 46. a4) 45... Bf5 $1 $11 {[%emt 0:00:00]} 46. Nd3 {[%emt 0:00:00]} (46. Nd1 $14) 46... Bc8 $18 {[%emt 0:00:00] [#]} 47. b4 $2 {[%emt 0:00:00]} (47. Nb2 $1 $18 {[%cal Rb2c4] Strongly threatening Nc4.} Ba6 48. Na4) 47... axb4 $11 {[%emt 0:00:00]} 48. Nxb4+ {[%emt 0:00:00]} Kc4 $2 {[%emt 0:00:00][%mdl 8192]} (48... Ke5 $11) 49. Kf4 {[%emt 0:00:00]} Kb3 {[%emt 0:00:00]} 50. Nd5 {[%emt 0:00:00]} Kxa3 {[%emt 0:00:00]} 51. Nf6 {[%emt 0:00:00]} Kb4 {[%emt 0:00:00]} 52. Nxh7 {[%emt 0:00:00]} Bf5 {[%emt 0:00:00]} 53. Nf8 {[%emt 0:00:00]} Kc3 {[%emt 0:00:00]} 54. Ke5 {[%emt 0:00:00]} Kd2 {[%emt 0:00:00]} 55. Kf6 {[%emt 0:00:00]} Ke3 {[%emt 0:00:00]} 56. Nxg6 {[%emt 0:00:00]} Bb1 {[%emt 0:00:00]} 57. Ne5 {[%emt 0:00:00]} Kf2 {[%emt 0:00:00]} 58. g4 {[%emt 0:00:00]} Kg3 {[%emt 0:00:00]} 59. g6 {[%emt 0:00:00]} Kh4 {[%emt 0:00:00]} 60. g7 {[%emt 0:00:00]} Bh7 {[%emt 0:00:00]} 61. g5 {[%emt 0:00:00]} Kh5 {[%emt 0:00:00]} 62. Nc6 {[%emt 0:00:00]} Kg4 {[%emt 0:00:55]} 63. Ne7 {[%emt 0:00:00]} 1-0

[Event "125-Jahre Werder Bremen 2024"]
[Site "Bremen"]
[Date "2024.03.05"]
[Round "4.4"]
[White "Wachinger, Nikolas"]
[Black "Plat, Vojtech"]
[Result "1-0"]
[ECO "B29"]
[WhiteElo "2442"]
[BlackElo "2528"]
[Annotator "TA"]
[PlyCount "63"]
[EventDate "2024.02.26"]
[EventType "swiss"]
[EventCountry "GER"]
[SourceTitle "playchess.com"]
[Source "ChessBase"]
[SourceQuality "1"]
[TimeControl "40/6000+30:1800+30"]

{[%evp 10,63,22,23,49,46,50,41,51,23,39,34,35,50,46,23,17,5,62,50,51,59,62,83,116,79,289,247,230,251,548,551,669,682,720,397,490,497,487,483,420,464,712,714,677,668,1893,463,29994,29995,29995,29996,29997,29998,29998,29999]} 1. e4 {[%emt 0:05:17]} c5 {[%emt 0:00:16]} 2. Nf3 {[%emt 0:01:24]} Nf6 {[%emt 0:00:09]} 3. e5 {[%emt 0:03:28]} Nd5 {[%emt 0:00:04]} 4. Nc3 {[%emt 0:00:06]} e6 {[%emt 0:00:02]} 5. Ne4 {[%emt 0:00:06]} f5 {[%emt 0:00:04]} 6. Nc3 {[%emt 0:00:08]} Ne7 {[%emt 0:00:21]} 7. d4 {[%emt 0:05:47]} cxd4 {[%emt 0:00:30]} 8. Nxd4 {[%emt 0:00:30]} a6 {[%emt 0:08:48] Dodges Ndb5. White is slightly better.} 9. Be3 {[%emt 0:41:27]} Nbc6 {[%emt 0:03:28]} 10. f4 $40 {[%emt 0:00:30][%mdl 128] Black needs to defend precisely.} Nxd4 {[%emt 0:00:30]} 11. Qxd4 {[%emt 0:00:21]} b5 {[%emt 0:00:49]} 12. O-O-O {[%emt 0:14:09]} Bb7 {[%emt 0:00:50]} 13. Kb1 {[%emt 0:02:40]} Nc6 {[%emt 0:29:33]} (13... Rc8 $11) 14. Qd2 {[%emt 0:00:47] White is more active.} Bb4 {[%emt 0:01:05]} 15. a3 {[%emt 0:02:21]} Be7 {[%emt 0:00:04]} 16. Rg1 {[%emt 0:06:16][%cal Bh1g1,Bg1g4,Bg4g7,Bg7e7][%mdl 32] And now g4 would win.} h5 {[%emt 0:05:11]} 17. h3 {[%emt 0:03:29] Black must now prevent g4.} Na5 $2 {[%emt 0:00:41] This move loses the game for Black.} (17... b4 $16) 18. g4 {[%emt 0:01:47]} hxg4 {[%emt 0:01:59]} 19. hxg4 {[%emt 0:00:07]} fxg4 {[%emt 0:00:26]} (19... g6 {was necessary.} 20. b4 Bc6 21. bxa5 Qxa5 22. gxf5 gxf5) 20. Rxg4 $18 {[%emt 0:03:04]} Bf3 {[%emt 0:02:24]} 21. Rxg7 {[%emt 0:00:05] [#] Hoping for Be2.} Bxd1 {[%emt 0:00:07]} 22. Qxd1 {[%emt 0:01:42]} Qc7 {[%emt 0:09:07]} 23. Qg4 {[%emt 0:00:54] Intending Qg6+ and mate.} O-O-O {[%emt 0:00:52][%cal Oh8h1]} 24. Rxe7 {[%emt 0:00:07]} Nc4 {[%emt 0:03:44]} 25. Bxc4 {[%emt 0:01:27]} Qxc4 {[%emt 0:04:00]} (25... Rh1+ $142 26. Bc1 Qxc4) 26. Qf3 {[%emt 0:00:16] Qa8+ would kill now.} Kc7 {[%emt 0:02:02][%cal Bc8c7,Bc7d7,Bd7e8,Be8f7][%mdl 32]} 27. f5 {[%emt 0:03:55]} Rdf8 {[%emt 0:02:55]} 28. b3 {[%emt 0:00:43]} (28. Bb6+ $142 Kxb6 29. Rxd7 (29. f6 Kc7 $14)) 28... Qh4 {[%emt 0:00:14] [#]} (28... Qxc3 $2 {is the wrong capture.} 29. Bb6+ Kxb6 30. Qxc3) (28... Qc6 $18) 29. Rxd7+ $3 {[%emt 0:01:12][%mdl 512] White mates.} Kxd7 {[%emt 0:00:02]} 30. Qb7+ {[%emt 0:00:09]} Ke8 {[%emt 0:00:02]} 31. Qc6+ {[%emt 0:00:12]} Kf7 {[%emt 0:00:13]} 32. Qxe6+ {[%emt 0:00:06] Weighted Error Value: White=0.58/Black=0.57.  Loses game:     	---       	Black=1      Mistake:       	---       	Black=3      Inaccurate:     	White=2     	Black=1      OK:         	White=8     	Black=9      Best:        	White=1     	Black=1} 1-0

[Event "125-Jahre Werder Bremen 2024"]
[Site "Bremen"]
[Date "2024.03.05"]
[Round "4.5"]
[White "Pajeken, Jakob Leon"]
[Black "Soderstrom, Adrian"]
[Result "1-0"]
[ECO "D12"]
[WhiteElo "2424"]
[BlackElo "2288"]
[Annotator "TA"]
[PlyCount "69"]
[EventDate "2024.02.26"]
[EventType "swiss"]
[EventCountry "GER"]
[SourceTitle "playchess.com"]
[Source "ChessBase"]
[SourceQuality "1"]
[TimeControl "40/6000+30:1800+30"]

{[%evp 9,69,10,20,10,22,11,23,20,34,15,30,35,36,18,23,12,17,18,24,27,22,31,134,135,134,136,135,148,134,135,162,98,168,173,175,186,216,222,208,210,218,199,259,231,282,283,355,322,638,631,713,659,1541,1531,1440,1374,5783,5169,29986,29987,29988,29989]} 1. Nf3 {[%emt 0:00:28]} d5 {[%emt 0:00:22]} 2. d4 {[%emt 0:00:04]} Nf6 {[%emt 0:00:04]} 3. c4 {[%emt 0:00:05]} c6 {[%emt 0:00:06]} 4. e3 {[%emt 0:00:04]} Bf5 {[%emt 0:00:11]} 5. Bd3 {[%emt 0:00:22]} Bg6 {[%emt 0:01:40]} 6. O-O {[%emt 0:00:19]} e6 {[%emt 0:00:38]} 7. Qc2 {[%emt 0:00:33]} Nbd7 {[%emt 0:04:12]} 8. Nbd2 {[%emt 0:00:40] White has an edge.} Be7 {[%emt 0:06:27]} 9. Rd1 {[%emt 0:01:49]} O-O {[%emt 0:02:11]} 10. Bxg6 {[%emt 0:00:27]} hxg6 {[%emt 0:00:06]} 11. e4 {[%emt 0:00:09]} dxe4 {[%emt 0:00:14]} 12. Nxe4 {[%emt 0:00:05]} c5 {[%emt 0:07:06]} 13. Nxf6+ {[%emt 0:20:25]} Bxf6 {[%emt 0:02:40]} 14. dxc5 {[%emt 0:03:15][%cal Oc1g5]} Qc7 {[%emt 0:00:42]} 15. Bf4 {[%emt 0:02:12]} Ne5 {[%emt 0:18:38]} ({Better is} 15... Qxf4 $14 16. Rxd7 b6) 16. Qc3 {[%emt 0:21:20] White is more active.} Nxf3+ {[%emt 0:00:11]} 17. Qxf3 {[%emt 0:00:03]} Be5 {[%emt 0:01:27]} (17... Qxc5 $2 18. Bd6 (18. Qxb7 Qxc4 19. g3 g5 $15) 18... Qxc4 19. Bxf8 Rxf8 20. Qxb7) 18. Bxe5 {[%emt 0:02:37]} Qxe5 {[%emt 0:00:02]} 19. b3 {[%emt 0:02:00][%cal Bb2b3,Bb3b4][%mdl 32]} Qc7 {[%emt 0:05:55]} 20. Rd2 {[%emt 0:05:51]} ({White should try} 20. b4 $18) 20... Rab8 {[%emt 0:05:45]} (20... Rad8 $16 21. Rad1 Rxd2 22. Rxd2 Qxc5) 21. b4 $18 {[%emt 0:02:04]} a5 {[%emt 0:02:35]} 22. a3 {[%emt 0:00:54][%cal Ba2a3,Ba3b4,Bb4b5][%mdl 32]} Rfd8 {[%emt 0:06:17]} 23. Rad1 {[%emt 0:02:26]} Rxd2 {[%emt 0:00:52]} 24. Rxd2 {[%emt 0:00:04]} axb4 {[%emt 0:00:46]} 25. axb4 {[%emt 0:00:08][%mdl 4096] Endgame. KQR-KQR} Qe5 {[%emt 0:12:51]} (25... Ra8 $142 26. Rd1 Ra4) 26. Rd1 {[%emt 0:01:38]} Qb2 {[%emt 0:02:02]} 27. b5 {[%emt 0:00:55]} Qb4 {[%emt 0:05:49] [#]} 28. c6 $1 {[%emt 0:01:13]} Qxc4 $2 {[%emt 0:00:40]} (28... bxc6 29. Qxc6 Qa4) 29. Qg3 {[%emt 0:00:22]} ({Weaker is} 29. cxb7 Qxb5 30. g4 Kf8 $11 (30... Qxb7 $2 {perishes.} 31. Rd8+ Rxd8 32. Qxb7 $18)) 29... Rf8 {[%emt 0:00:28]} 30. c7 {[%emt 0:11:40]} Qc2 {[%emt 0:12:24]} 31. Qd6 {[%emt 0:00:41]} b6 {[%emt 0:00:05]} 32. h3 {[%emt 0:01:38]} Kh7 {[%emt 0:02:26]} 33. Qxf8 {[%emt 0:00:33]} Qxd1+ {[%emt 0:00:06]} 34. Kh2 {[%emt 0:00:01]} Qd4 {[%emt 0:00:42]} 35. c8=Q {[%emt 0:00:11] Weighted Error Value: White=0.05 (flawless) /Black=0.63.  Mistake:       	White=1     	Black=4      OK:         	White=8     	Black=5      Best:        	White=2     	---        Strong:       	White=1     	---} ({Not} 35. c8=B Qf4+ 36. Kg1 Qc1+ 37. Kh2 Qf4+ 38. Kh1 Qc1+ 39. Kh2 Qf4+ $11) 1-0

[Event "125-Jahre Werder Bremen 2024"]
[Site "Bremen"]
[Date "2024.03.05"]
[Round "4.6"]
[White "Wiegmann, Sascha"]
[Black "Teclaf, Pawel"]
[Result "0-1"]
[ECO "B42"]
[WhiteElo "2297"]
[BlackElo "2556"]
[Annotator "RC"]
[PlyCount "48"]
[EventDate "2024.02.26"]
[EventType "swiss"]
[EventCountry "GER"]
[SourceTitle "playchess.com"]
[Source "ChessBase"]
[SourceQuality "1"]
[TimeControl "40/6000+30:1800+30"]

1. e4 {[%emt 0:00:05]} c5 {[%emt 0:00:06]} 2. Nf3 {[%emt 0:00:02]} e6 {[%emt 0:00:05]} 3. d4 {[%emt 0:00:04]} cxd4 {[%emt 0:00:05]} 4. Nxd4 {[%emt 0:00:02]} a6 {[%emt 0:00:06]} 5. Bd3 {[%emt 0:00:04]} Ne7 {[%emt 0:00:28]} 6. O-O {[%emt 0:06:54]} Nbc6 {[%emt 0:00:08]} 7. Nb3 {[%emt 0:06:13]} g6 {[%emt 0:01:33]} 8. Nc3 {[%emt 0:06:56]} Bg7 {[%emt 0:01:13]} 9. Bg5 {[%emt 0:04:46]} h6 {[%emt 0:03:45]} 10. Bh4 {[%emt 0:01:22]} Ne5 {[%emt 0:07:57]} 11. f4 {[%emt 0:05:18]} g5 {[%emt 0:00:09]} 12. fxe5 {[%emt 0:29:41]} gxh4 {[%emt 0:00:08]} 13. Nd2 {[%emt 0:11:03]} Ng6 {[%emt 0:04:11]} 14. Nc4 {[%emt 0:02:04]} O-O {[%emt 0:01:33]} 15. Qe2 {[%emt 0:05:36]} b5 {[%emt 0:04:07]} 16. Ne3 {[%emt 0:00:02]} Nxe5 {[%emt 0:02:09]} 17. Rf2 {[%emt 0:03:03]} Bb7 {[%emt 0:08:27]} 18. Raf1 {[%emt 0:02:27]} Qg5 {[%emt 0:00:32]} 19. Rf4 {[%emt 0:03:40]} Ng6 {[%emt 0:02:09]} 20. Rg4 {[%emt 0:03:22]} Qe5 {[%emt 0:00:46]} 21. g3 {[%emt 0:07:13]} h5 {[%emt 0:03:47]} 22. Rgf4 {[%emt 0:00:02]} Nxf4 {[%emt 0:07:55]} 23. gxf4 {[%emt 0:00:02]} Qd4 {[%emt 0:00:06]} 24. Qf2 {[%emt 0:03:14]} f5 {[%emt 0:01:44]} 0-1